fUST/lending_fUST_20240607
["ID","MTS","AMOUNT","RATE_DAILY","PERIOD"]
[328688843,1717708244322,-500.0,0.00024657,2]
[328688844,1717708244332,-506.65264297,0.00024657,2]
[328688845,1717708244342,-508.76058081,0.00024657,2]
[328688846,1717708244353,-500.0,0.00024657,2]
[328688847,1717708244363,-506.88216702,0.00024657,2]
[328688848,1717708244374,-500.0,0.00024657,2]
[328688849,1717708244384,-500.0,0.00024657,2]
[328688850,1717708244396,-500.0,0.00024657,2]
[328688851,1717708244406,-500.0,0.00024657,2]
[328688852,1717708244416,-155.00465014,0.00024657,2]
[328688853,1717708244426,-512.70778921,0.00024657,2]
[328688854,1717708244438,-500.0,0.00024657,2]
[328688855,1717708244447,-500.0,0.00024657,2]
[328688856,1717708244458,-537.21483192,0.00024657,2]
[328688857,1717708244470,-500.0,0.00024657,2]
[328688858,1717708244480,-500.0,0.00024657,2]
[328688859,1717708244491,-500.0,0.00024657,2]
[328688860,1717708244501,-500.0,0.00024657,2]
[328688861,1717708244510,-500.0,0.00024657,2]
[328688862,1717708244520,-500.0,0.00024657,2]
[328688863,1717708244530,-500.0,0.00024657,2]
[328688864,1717708244539,-500.0,0.00024657,2]
[328688865,1717708244548,-500.0,0.00024657,2]
[328688866,1717708244558,-500.0,0.00024657,2]
[328688867,1717708244567,-500.0,0.00024657,2]
[328688868,1717708244576,-565.52,0.00024657,2]
[328688869,1717708244585,-500.0,0.00024657,2]
[328688870,1717708244595,-500.0,0.00024657,2]
[328688871,1717708244604,-500.0,0.00024657,2]
[328688872,1717708244613,-500.0,0.00024657,2]
[328688873,1717708244623,-500.0,0.00024657,2]
[328688874,1717708244632,-500.0,0.00024657,2]
[328688875,1717708244642,-500.0,0.00024657,2]
[328688876,1717708244651,-500.0,0.00024657,2]
[328688877,1717708244660,-500.0,0.00024657,2]
[328688878,1717708244671,-500.0,0.00024657,2]
[328688879,1717708244680,-500.0,0.00024657,2]
[328688880,1717708244689,-500.0,0.00024657,2]
[328688881,1717708244698,-500.0,0.00024657,2]
[328688882,1717708244708,-500.0,0.00024657,2]
[328688883,1717708244717,-500.0,0.00024657,2]
[328688884,1717708244727,-500.0,0.00024657,2]
[328688885,1717708244737,-500.0,0.00024657,2]
[328688886,1717708244747,-500.0,0.00024657,2]
[328688887,1717708244756,-500.0,0.00024657,2]
[328688888,1717708244765,-500.0,0.00024657,2]
[328688889,1717708244774,-500.0,0.00024657,2]
[328688890,1717708244784,-500.0,0.00024657,2]
[328688891,1717708244794,-500.0,0.00024657,2]
[328688892,1717708244803,-500.0,0.00024657,2]
[328688893,1717708244812,-500.0,0.00024657,2]
[328688894,1717708244821,-500.0,0.00024657,2]
[328688895,1717708244830,-500.0,0.00024657,2]
[328688896,1717708244839,-394.95705111,0.00024657,2]
[328688897,1717708244848,-510.54717067,0.00024657,2]
[328688898,1717708244857,-559.53090958,0.00024657,2]
[328688899,1717708244866,-500.0,0.00024657,2]
[328688900,1717708244876,-500.0,0.00024657,2]
[328688901,1717708244886,-500.0,0.00024657,2]
[328688902,1717708244895,-500.0,0.00024657,2]
[328688903,1717708244904,-500.0,0.00024657,2]
[328688904,1717708244913,-500.0,0.00024657,2]
[328688905,1717708244923,-500.0,0.00024657,2]
[328688906,1717708244932,-200.0,0.00024657,2]
[328688907,1717708244942,-500.0,0.00024657,2]
[328688908,1717708244951,-500.0,0.00024657,2]
[328688909,1717708244960,-582.95,0.00024657,2]
[328688910,1717708244969,-500.0,0.00024657,2]
[328688911,1717708244978,-500.0,0.00024657,2]
[328688912,1717708244988,-500.0,0.00024657,2]
[328688913,1717708244997,-500.0,0.00024657,2]
[328688914,1717708245007,-500.0,0.00024657,2]
[328688915,1717708245016,-500.0,0.00024657,2]
[328688916,1717708245025,-500.0,0.00024657,2]
[328688917,1717708245035,-500.0,0.00024657,2]
[328688918,1717708245044,-500.0,0.00024657,2]
[328688919,1717708245054,-500.0,0.00024657,2]
[328688920,1717708245063,-500.0,0.00024657,2]
[328688921,1717708245200,-500.0,0.00024657,2]
[328688922,1717708245211,-500.0,0.00024657,2]
[328688923,1717708245221,-500.0,0.00024657,2]
[328688924,1717708245231,-500.0,0.00024657,2]
[328688925,1717708245240,-500.0,0.00024657,2]
[328688926,1717708245250,-500.0,0.00024657,2]
[328688927,1717708245261,-500.0,0.00024657,2]
[328688928,1717708245272,-500.0,0.00024657,2]
[328688929,1717708245281,-504.57259745,0.00024657,2]
[328688930,1717708245291,-500.0,0.00024657,2]
[328688931,1717708245300,-500.0,0.00024657,2]
[328688932,1717708245311,-500.0,0.00024657,2]
[328688933,1717708245320,-502.87088304,0.00024657,2]
[328688934,1717708245330,-500.0,0.00024657,2]
[328688935,1717708245339,-334.96651373,0.00024657,2]
[328688936,1717708245349,-549.75783927,0.00024657,2]
[328688937,1717708245358,-500.0,0.00024657,2]
[328688938,1717708245367,-500.0,0.00024657,2]
[328688939,1717708245377,-500.0,0.00024657,2]
[328688940,1717708245386,-500.0,0.00024657,2]
[328688941,1717708245400,-727.35,0.00024657,2]
[328688942,1717708245410,-500.0,0.00024657,2]
[328688943,1717708245420,-500.0,0.00024657,2]
[328688944,1717708245429,-500.0,0.00024657,2]
[328688945,1717708245438,-500.0,0.00024657,2]
[328688946,1717708245448,-500.0,0.00024657,2]
[328688947,1717708245457,-500.0,0.00024657,2]
[328688948,1717708245468,-500.0,0.00024657,2]
[328688949,1717708245478,-500.0,0.00024657,2]
[328688950,1717708245487,-500.0,0.00024657,2]
[328688951,1717708245497,-500.0,0.00024657,2]
[328688952,1717708245507,-693.53,0.00024657,2]
[328688953,1717708245517,-500.0,0.00024657,2]
[328688954,1717708245527,-500.0,0.00024657,2]
[328688955,1717708245537,-500.0,0.00024657,2]
[328688956,1717708245547,-500.0,0.00024657,2]
[328688957,1717708245557,-500.0,0.00024657,2]
[328688958,1717708245566,-1142.55,0.00024657,2]
[328688959,1717708245575,-346.50283667,0.00024657,2]
[328688967,1717708246620,1000.0,0.00024,120]
[328688975,1717708410159,515.33926844,9.999e-05,2]
[328688976,1717708679109,154.95351395,0.000136,2]
[328688977,1717708956922,343.0139501,0.00013325,2]
[328688978,1717709028938,577.7793622,0.00013699,2]
[328688979,1717709168876,17050.2989614,0.00013699,2]
[328688980,1717709349393,157.64438498,9.999e-05,2]
[328688981,1717709351146,673.88358079,9.999e-05,2]
[328689013,1717709432991,-1982.61645022,0.00014063,2]
[328689014,1717709433001,-185.27974199,0.00014064,2]
[328689015,1717709433010,-1902.88024106,0.00014064,2]
[328689016,1717709433019,-1085.02356673,0.00014064,2]
[328689017,1717709433031,-467.0292,0.00014064,2]
[328689040,1717709440034,-356.93879695,0.00014062,2]
[328689041,1717709440136,-1148.725005,0.00014062,2]
[328689042,1717709440148,-606.89710523,0.00014062,2]
[328689043,1717709440158,-482.55889597,0.00014062,2]
[328689044,1717709440169,-291.53137445,0.00014062,2]
[328689045,1717709440179,-568.101591,0.00014064,2]
[328689046,1717709440188,-220.6070342,0.00014065,2]
[328689047,1717709440200,-706.36244567,0.00014065,2]
[328689048,1717709440209,-163.73640345,0.00014066,2]
[328689049,1717709440218,-437.12244681,0.00014166,2]
[328689050,1717709440230,-53.8758854,0.00014166,2]
[328689051,1717709440240,-163.73640345,0.00014192,2]
[328689053,1717709440250,-1351.84743809,0.00014192,2]
[328689055,1717709440260,-1948.15678875,0.00014291,2]
[328689058,1717709440271,-1449.11757704,0.00014291,2]
[328689059,1717709440283,-5018.76980205,0.00014291,2]
[328689073,1717709443273,-3108.30893802,0.00014291,2]
[328689075,1717709443285,-1094.18813609,0.00014291,2]
[328689078,1717709443296,-11340.20426387,0.00014291,2]
[328689079,1717709443308,-22656.36690661,0.00014291,2]
[328689081,1717709443317,-24900.0,0.00014292,2]
[328689083,1717709443327,-250.0,0.00014426,2]
[328689084,1717709443336,-3593.3673732,0.00014443,2]
[328689087,1717709443352,-2053.1262872,0.00014893,2]
[328689090,1717709443367,-154.95351395,0.00015,2]
[328689091,1717709443377,-1351.84743808,0.00016007,2]
[328689093,1717709443387,-3637.67715595,0.00016491,2]
[328689096,1717709443396,-490.99833218,0.00016764,2]
[328689098,1717709443407,-1351.84743808,0.00017823,2]
[328689100,1717709443417,-991.60232279,0.00018491,2]
[328689102,1717709443427,-170.67187647,0.000189,2]
[328689104,1717709443438,-490.99833218,0.00019362,2]
[328689106,1717709443447,-1351.84743808,0.00019638,2]
[328689108,1717709443457,-4238.76986879,0.0002,2]
[328689110,1717709443467,-225.05706064,0.0002,2]
[328689111,1717709443477,-1351.84743808,0.00021454,2]
[328689112,1717709443487,-150.0,0.000215,2]
[328689113,1717709443496,-166.666666,0.00021918,2]
[328689114,1717709443506,-490.99833218,0.00021959,2]
[328689115,1717709443516,-194.78160774,0.00023268,2]
[328689117,1717709443526,-379.99466506,0.00023268,2]
[328689119,1717709443535,-420.35039127,0.00023268,2]
[328689121,1717709443545,-445.75511986,0.00023268,2]
[328691507,1717710430154,-1902.88024106,0.00017173,2]
[328691508,1717710430176,-326.18272058,0.00017174,2]
[328691509,1717710430199,-341.42952859,0.00017175,2]
[328691510,1717710430220,-46615.11241243,0.00017272,2]
[328691511,1717710430240,-19298.65138035,0.00017273,2]
[328691512,1717710430262,-644.59025872,0.00017382,2]
[328691513,1717710430283,-1352.13119913,0.00017482,2]
[328691514,1717710430304,-24900.0,0.00017582,2]
[328691515,1717710430324,-2362.096299,0.00018265,2]
[328691516,1717710430344,-163.73640347,0.00018697,2]
[328691517,1717710430366,-644.59025872,0.00018742,2]
[328691518,1717710430390,-511.6,0.00018878,3]
[328691519,1717710430421,-511.56,0.00018888,3]
[328691520,1717710430445,-185.27974199,0.00018897,2]
[328691521,1717710430466,-926.96947987,0.00018898,2]
[328691522,1717710430487,-150.0,0.000189,2]
[328691523,1717710430509,-166.68866649,0.00019,2]
[328691524,1717710430531,-1352.13119912,0.00019251,2]
[328691525,1717710430552,-1623.79847679,0.0002,2]
[328691526,1717710430575,-644.59025872,0.00020101,2]
[328691527,1717710430595,-341.42952857,0.00020866,2]
[328691528,1717710430618,-1352.13119912,0.0002102,2]
[328691529,1717710430640,-644.59025872,0.00021461,2]
[328691530,1717710430662,-150.0,0.000215,2]
[328691531,1717710430684,-166.666666,0.00021918,2]
[328691532,1717710430705,-624.26526648,0.000221,2]
[328691533,1717710430727,-162.85485646,0.0002277,2]
[328691534,1717710430750,-407.50003676,0.0002277,2]
[328691535,1717710430775,-621.04613844,0.0002277,2]
[328691536,1717710430797,-197.94260076,0.0002277,2]
[328691537,1717710430821,-621.04613844,0.0002277,2]
[328691538,1717710430847,-621.04613844,0.0002277,2]
[328691539,1717710430876,-621.04613844,0.0002277,2]
[328691540,1717710430902,-621.04613844,0.0002277,2]
[328691541,1717710430928,-621.04613844,0.0002277,2]
[328691542,1717710430953,-621.04613844,0.0002277,2]
[328691543,1717710430979,-621.04613844,0.0002277,2]
[328691544,1717710431004,-621.04613844,0.0002277,2]
[328691545,1717710431030,-621.04613844,0.0002277,2]
[328691546,1717710431055,-621.04613844,0.0002277,2]
[328691547,1717710431083,-621.04613844,0.0002277,2]
[328691548,1717710431107,-621.04613844,0.0002277,2]
[328691549,1717710431131,-621.04613844,0.0002277,2]
[328691550,1717710431159,-621.04613844,0.0002277,2]
[328691551,1717710431184,-621.04613844,0.0002277,2]
[328691552,1717710431208,-621.04613844,0.0002277,2]
[328691553,1717710431233,-621.04613844,0.0002277,2]
[328691554,1717710431257,-621.04613844,0.0002277,2]
[328691555,1717710431280,-621.04613844,0.0002277,2]
[328691556,1717710431304,-621.04613844,0.0002277,2]
[328691557,1717710431328,-621.04613844,0.0002277,2]
[328691558,1717710431355,-621.04613844,0.0002277,2]
[328691559,1717710431382,-621.04613844,0.0002277,2]
[328691560,1717710431411,-621.04613844,0.0002277,2]
[328691561,1717710431437,-621.04613844,0.0002277,2]
[328691562,1717710431463,-621.04613844,0.0002277,2]
[328691563,1717710431488,-621.04613844,0.0002277,2]
[328691564,1717710431518,-621.04613844,0.0002277,2]
[328691565,1717710431544,-621.04613844,0.0002277,2]
[328691566,1717710431569,-621.04613844,0.0002277,2]
[328691567,1717710431593,-621.04613844,0.0002277,2]
[328691568,1717710431618,-621.04613844,0.0002277,2]
[328691569,1717710431642,-621.04613844,0.0002277,2]
[328691570,1717710431666,-621.04613844,0.0002277,2]
[328691571,1717710431690,-621.04613843,0.0002277,2]
[328691572,1717710431714,-621.04613843,0.0002277,2]
[328691573,1717710431739,-621.04613843,0.0002277,2]
[328691574,1717710431765,-621.04613843,0.0002277,2]
[328691575,1717710431790,-621.04613843,0.0002277,2]
[328691576,1717710431816,-621.04613843,0.0002277,2]
[328691577,1717710431843,-621.04613843,0.0002277,2]
[328691578,1717710431869,-621.04613843,0.0002277,2]
[328691579,1717710431894,-621.04613843,0.0002277,2]
[328691580,1717710431920,-621.04613843,0.0002277,2]
[328691581,1717710432099,-621.04613843,0.0002277,2]
[328691582,1717710432126,-621.04613843,0.0002277,2]
[328691583,1717710432155,-621.04613843,0.0002277,2]
[328691584,1717710432180,-621.04613843,0.0002277,2]
[328691585,1717710432208,-621.04613843,0.0002277,2]
[328691586,1717710432236,-621.04613843,0.0002277,2]
[328691587,1717710432263,-621.04613843,0.0002277,2]
[328691588,1717710432290,-621.04613843,0.0002277,2]
[328691589,1717710432316,-621.04613843,0.0002277,2]
[328691590,1717710432342,-621.04613843,0.0002277,2]
[328691591,1717710432370,-621.04613843,0.0002277,2]
[328691592,1717710432397,-621.04613843,0.0002277,2]
[328691593,1717710432424,-621.04613843,0.0002277,2]
[328691594,1717710432451,-621.04613843,0.0002277,2]
[328691595,1717710432478,-608.62521568,0.0002277,2]
[328691596,1717710432504,-608.62521568,0.0002277,2]
[328691597,1717710432531,-608.62521568,0.0002277,2]
[328691598,1717710432556,-608.62521568,0.0002277,2]
[328691599,1717710432581,-608.62521568,0.0002277,2]
[328691600,1717710432605,-608.62521568,0.0002277,2]
[328691601,1717710432630,-608.62521568,0.0002277,2]
[328691602,1717710432654,-608.62521568,0.0002277,2]
[328691603,1717710432678,-608.62521568,0.0002277,2]
[328691604,1717710432705,-608.62521568,0.0002277,2]
[328691605,1717710432727,-166.666666,0.00022773,2]
[328691606,1717710432748,-150.0,0.00022776,2]
[328691607,1717710432769,-4236.27632862,0.00022785,2]
[328691608,1717710432792,-1352.13119912,0.00022788,2]
[328691609,1717710432812,-169.343325,0.00022851,2]
[328691610,1717710432834,-205.1548009,0.00023041,2]
[328691611,1717710432855,-205.1548009,0.00023041,2]
[328691612,1717710432879,-205.1548009,0.00023041,2]
[328691613,1717710432900,-205.1548009,0.00023041,2]
[328691614,1717710432921,-203.4817859,0.00023041,2]
[328691615,1717710432942,-258.7603694,0.00023125,2]
[328691616,1717710432964,-2979.1428386,0.00023125,2]
[328691617,1717710432984,-1906.2478816,0.00023125,2]
[328691618,1717710433005,-258.9209,0.00023125,2]
[328691619,1717710433024,-224.97896443,0.00023268,2]
[328691620,1717710433047,-585.8590925,0.0002331,2]
[328691621,1717710433068,-166.666666,0.00023627,2]
[328691622,1717710433092,-1379.71132647,0.0002385,2]
[328691623,1717710433113,-150.0,0.000239,2]
[328691624,1717710433136,-309.87604958,0.00024,2]
[328691625,1717710433159,-166.666666,0.00024482,2]
[328691626,1717710433180,-166.666666,0.00024493,2]
[328691627,1717710433212,-185.2960688,0.00024548,2]
[328691628,1717710433234,-1352.13119912,0.00024557,2]
[328691629,1717710433256,-341.42952857,0.00024557,2]
[328691630,1717710433278,-1837.09686485,0.0002463,2]
[328691631,1717710433299,-514.38508412,0.00024655,2]
[328691632,1717710433320,-2762.77347703,0.00024655,2]
[328691633,1717710433340,-632.41668851,0.00024655,2]
[328691634,1717710433361,-157.06411215,0.00024655,2]
[328691635,1717710433382,-545.17926842,0.00024655,2]
[328691636,1717710433403,-2011.75590866,0.00024655,2]
[328691637,1717710433425,-154.95351395,0.00024655,2]
[328691638,1717710433446,-2641.29398819,0.00024655,2]
[328691639,1717710433466,-154.95351395,0.00024655,2]
[328691640,1717710433487,-317.32399469,0.00024655,2]
[328691641,1717710433508,-307.25155377,0.00024656,2]
[328691642,1717710433529,-464.00337496,0.00024656,7]
[328691643,1717710433556,-4489.2734209,0.00024657,7]
[328691644,1717710433577,-200.0,0.00024657,2]
[328691645,1717710433597,-500.0,0.00024657,2]
[328691646,1717710433618,-341.80050856,0.00024657,2]
[328691647,1717710433639,-515.21126308,0.00024657,2]
[328691648,1717710433661,-500.0,0.00024657,2]
[328691649,1717710433681,-697.05,0.00024657,2]
[328691650,1717710433702,-500.0,0.00024657,2]
[328691651,1717710433723,-500.0,0.00024657,2]
[328691652,1717710433744,-500.0,0.00024657,2]
[328691653,1717710433765,-500.0,0.00024657,2]
[328691654,1717710433786,-500.0,0.00024657,2]
[328691655,1717710433807,-500.0,0.00024657,2]
[328691656,1717710433827,-500.0,0.00024657,2]
[328691657,1717710433848,-500.0,0.00024657,2]
[328691658,1717710433868,-500.0,0.00024657,2]
[328691659,1717710433889,-500.0,0.00024657,2]
[328691660,1717710433910,-1094.94,0.00024657,2]
[328691661,1717710433930,-500.0,0.00024657,2]
[328691662,1717710433951,-500.0,0.00024657,2]
[328691663,1717710433972,-500.0,0.00024657,2]
[328691664,1717710433992,-500.0,0.00024657,2]
[328691665,1717710434013,-500.0,0.00024657,2]
[328691666,1717710434034,-500.0,0.00024657,2]
[328691667,1717710434055,-500.0,0.00024657,2]
[328691668,1717710434076,-500.0,0.00024657,2]
[328691669,1717710434099,-500.0,0.00024657,2]
[328691670,1717710434121,-500.0,0.00024657,2]
[328691671,1717710434141,-500.0,0.00024657,2]
[328691672,1717710434162,-500.0,0.00024657,2]
[328691673,1717710434185,-507.16320713,0.00024657,2]
[328691674,1717710434205,-500.0,0.00024657,2]
[328691675,1717710434225,-500.0,0.00024657,2]
[328691676,1717710434247,-500.0,0.00024657,2]
[328691677,1717710434267,-399.72647774,0.00024657,2]
[328691678,1717710434286,-500.0,0.00024657,2]
[328691679,1717710434306,-525.85647895,0.00024657,2]
[328691680,1717710434326,-500.0,0.00024657,2]
[328691681,1717710434346,-489.4618939,0.00024657,2]
[328691682,1717710434366,-500.0,0.00024657,2]
[328691683,1717710434386,-500.0,0.00024657,2]
[328691684,1717710434406,-500.0,0.00024657,2]
[328691685,1717710434427,-500.0,0.00024657,2]
[328691686,1717710434447,-500.0,0.00024657,2]
[328691687,1717710434468,-500.0,0.00024657,2]
[328691688,1717710434489,-500.0,0.00024657,2]
[328691689,1717710434512,-500.0,0.00024657,2]
[328691690,1717710434533,-500.0,0.00024657,2]
[328691691,1717710434554,-500.0,0.00024657,2]
[328691692,1717710434576,-500.0,0.00024657,2]
[328691693,1717710434600,-963.26,0.00024657,2]
[328691694,1717710434620,-500.0,0.00024657,2]
[328691695,1717710434641,-500.0,0.00024657,2]
[328691696,1717710434665,-500.0,0.00024657,2]
[328691697,1717710434688,-500.0,0.00024657,2]
[328691698,1717710434711,-186.55347732,0.00024657,2]
[328691699,1717710434734,-500.0,0.00024657,2]
[328691700,1717710434758,-500.0,0.00024657,2]
[328691701,1717710434780,-500.0,0.00024657,2]
[328691702,1717710434805,-500.0,0.00024657,2]
[328691703,1717710434830,-500.0,0.00024657,2]
[328691704,1717710434853,-500.0,0.00024657,2]
[328691705,1717710434879,-500.0,0.00024657,2]
[328691706,1717710434901,-500.0,0.00024657,2]
[328691707,1717710434927,-500.0,0.00024657,2]
[328691708,1717710434951,-500.0,0.00024657,2]
[328691709,1717710434975,-500.0,0.00024657,2]
[328691710,1717710434999,-651.15,0.00024657,2]
[328691711,1717710435021,-500.0,0.00024657,2]
[328691712,1717710435041,-500.0,0.00024657,2]
[328691713,1717710435063,-500.0,0.00024657,2]
[328691714,1717710435089,-500.0,0.00024657,2]
[328691715,1717710435111,-422.70219657,0.00024657,2]
[328691716,1717710435257,-500.0,0.00024657,2]
[328691717,1717710435278,-500.0,0.00024657,2]
[328691718,1717710435298,-500.0,0.00024657,2]
[328691719,1717710435319,-500.0,0.00024657,2]
[328691720,1717710435339,-500.0,0.00024657,2]
[328691721,1717710435358,-500.0,0.00024657,2]
[328691722,1717710435379,-567.55640933,0.00024657,2]
[328691723,1717710435399,-500.0,0.00024657,2]
[328691724,1717710435419,-500.0,0.00024657,2]
[328691725,1717710435440,-500.0,0.00024657,2]
[328691726,1717710435460,-500.0,0.00024657,2]
[328691727,1717710435482,-500.0,0.00024657,2]
[328691728,1717710435502,-500.0,0.00024657,2]
[328691729,1717710435523,-500.0,0.00024657,2]
[328691730,1717710435544,-500.0,0.00024657,2]
[328691731,1717710435564,-500.0,0.00024657,2]
[328691732,1717710435584,-500.0,0.00024657,2]
[328691733,1717710435604,-500.0,0.00024657,2]
[328691734,1717710435624,-500.0,0.00024657,2]
[328691735,1717710435644,-500.0,0.00024657,2]
[328691736,1717710435665,-626.56,0.00024657,2]
[328691737,1717710435685,-500.0,0.00024657,2]
[328691738,1717710435706,-500.0,0.00024657,2]
[328691739,1717710435727,-500.0,0.00024657,2]
[328691740,1717710435749,-500.0,0.00024657,2]
[328691741,1717710435769,-500.0,0.00024657,2]
[328691742,1717710435791,-500.0,0.00024657,2]
[328691743,1717710435814,-500.0,0.00024657,2]
[328691744,1717710435837,-500.0,0.00024657,2]
[328691745,1717710435859,-500.0,0.00024657,2]
[328691746,1717710435880,-508.50015576,0.00024657,2]
[328691747,1717710435901,-500.0,0.00024657,2]
[328691748,1717710435922,-500.0,0.00024657,2]
[328691749,1717710435942,-500.0,0.00024657,2]
[328691750,1717710435964,-500.0,0.00024657,2]
[328691751,1717710435985,-500.0,0.00024657,2]
[328691752,1717710436008,-500.0,0.00024657,2]
[328691753,1717710436029,-500.0,0.00024657,2]
[328691754,1717710436049,-500.0,0.00024657,2]
[328691755,1717710436071,-500.0,0.00024657,2]
[328691756,1717710436096,-500.0,0.00024657,2]
[328691757,1717710436117,-500.0,0.00024657,2]
[328691758,1717710436139,-500.0,0.00024657,2]
[328691759,1717710436165,-607.67076774,0.00024657,2]
[328691760,1717710436185,-549.45743718,0.00024657,2]
[328691761,1717710436206,-505.34168723,0.00024657,2]
[328691762,1717710436227,-500.0,0.00024657,2]
[328691763,1717710436250,-526.4874988,0.00024657,2]
[328691764,1717710436271,-500.0,0.00024657,2]
[328691765,1717710436292,-500.0,0.00024657,2]
[328691766,1717710436313,-500.0,0.00024657,2]
[328691767,1717710436334,-500.0,0.00024657,2]
[328691768,1717710436355,-500.0,0.00024657,2]
[328691769,1717710436375,-500.0,0.00024657,2]
[328691770,1717710436395,-500.0,0.00024657,2]
[328691771,1717710436416,-500.0,0.00024657,2]
[328691772,1717710436436,-500.0,0.00024657,2]
[328691773,1717710436456,-500.0,0.00024657,2]
[328691774,1717710436477,-500.0,0.00024657,2]
[328691775,1717710436498,-500.0,0.00024657,2]
[328691776,1717710436518,-500.0,0.00024657,2]
[328691777,1717710436540,-500.0,0.00024657,2]
[328691778,1717710436561,-500.0,0.00024657,2]
[328691779,1717710436582,-500.0,0.00024657,2]
[328691780,1717710436602,-298.87903323,0.00024657,2]
[328691781,1717710436622,-515.21664899,0.00024657,2]
[328691782,1717710436642,-534.55107009,0.00024657,2]
[328691783,1717710436662,-500.0,0.00024657,2]
[328691784,1717710436684,-1187.97,0.00024657,2]
[328691785,1717710436703,-500.0,0.00024657,2]
[328691786,1717710436725,-500.0,0.00024657,2]
[328691787,1717710436747,-500.0,0.00024657,2]
[328691788,1717710436767,-500.0,0.00024657,2]
[328691789,1717710436788,-523.30986006,0.00024657,2]
[328691790,1717710436808,-502.4187492,0.00024657,2]
[328691791,1717710436829,-582.32053692,0.00024657,2]
[328691792,1717710436850,-500.0,0.00024657,2]
[328691793,1717710436870,-500.0,0.00024657,2]
[328691794,1717710436892,-500.0,0.00024657,2]
[328691795,1717710436913,-500.93257713,0.00024657,2]
[328691796,1717710436936,-500.0,0.00024657,2]
[328691797,1717710436961,-3789.43,0.00024657,2]
[328691798,1717710436982,-603.17,0.00024657,2]
[328691799,1717710437004,-500.0,0.00024657,2]
[328691800,1717710437028,-500.0,0.00024657,2]
[328691801,1717710437048,-500.0,0.00024657,2]
[328691802,1717710437074,-2732.08,0.00024657,2]
[328691803,1717710437100,-500.0,0.00024657,2]
[328691804,1717710437122,-500.0,0.00024657,2]
[328691805,1717710437144,-500.0,0.00024657,2]
[328691806,1717710437168,-744.94,0.00024657,2]
[328691807,1717710437191,-500.0,0.00024657,2]
[328691808,1717710437214,-500.0,0.00024657,2]
[328691809,1717710437235,-500.0,0.00024657,2]
[328691810,1717710437257,-500.0,0.00024657,2]
[328691811,1717710437278,-500.0,0.00024657,2]
[328691812,1717710437300,-706.3,0.00024657,2]
[328691813,1717710437321,-502.65214028,0.00024657,2]
[328691814,1717710437343,-500.0,0.00024657,2]
[328691815,1717710437363,-372.11026212,0.00024657,2]
[328691816,1717710437384,-500.0,0.00024657,2]
[328691817,1717710437405,-500.0,0.00024657,2]
[328691818,1717710437426,-500.0,0.00024657,2]
[328691819,1717710437447,-500.0,0.00024657,2]
[328691820,1717710437469,-500.0,0.00024657,2]
[328691821,1717710437490,-500.0,0.00024657,2]
[328691822,1717710437511,-500.0,0.00024657,2]
[328691823,1717710437533,-500.0,0.00024657,2]
[328691824,1717710437555,-500.0,0.00024657,2]
[328691825,1717710437579,-500.0,0.00024657,2]
[328691826,1717710437602,-500.0,0.00024657,2]
[328691827,1717710437625,-500.0,0.00024657,2]
[328691828,1717710437647,-500.0,0.00024657,2]
[328691829,1717710437668,-572.35,0.00024657,2]
[328691830,1717710437691,-206.12690628,0.00024657,2]
[328691831,1717710437713,-500.0,0.00024657,2]
[328691832,1717710437735,-1779.69,0.00024657,2]
[328691833,1717710437758,-500.0,0.00024657,2]